fUSD/lending_fUSD_20250421
["ID","MTS","AMOUNT","RATE_DAILY","PERIOD"]
[358565781,1745269034151,-952062.83505261,0.00047983,120]
[358565782,1745269034180,-37580.56707365,0.00047983,30]
[358565783,1745269034208,-218197.19554334,0.00047983,120]
[358565784,1745269034237,-1120535.39277928,0.00047983,120]
[358565785,1745269034266,-38041.85702509,0.00047983,120]
[358565786,1745269034294,-15777.03890431,0.00047983,120]
[358565787,1745269034327,-657691.96377289,0.00047983,120]
[358565788,1745269034356,-17071.12412655,0.00047983,120]
[358565789,1745269034385,-5000.0,0.00047983,120]
[358565790,1745269034417,-217264.73972836,0.00047983,120]
[358565791,1745269034445,-874.44105922,0.00047983,30]
[358565792,1745269034476,-500.0,0.00047983,30]
[358565793,1745269034507,-50000.0,0.00047983,30]
[358565794,1745269034539,-50000.0,0.00047983,31]
[358565795,1745269034570,-50000.0,0.00047983,32]
[358565796,1745269034600,-50000.0,0.00047983,33]
[358565797,1745269034630,-50000.0,0.00047983,34]
[358565798,1745269034658,-537.0,0.00047983,120]
[358565799,1745269034685,-999.999999,0.00047983,120]
[358565800,1745269034713,-1097.30488728,0.00047983,120]
[358565801,1745269034740,-1738.29145868,0.00047983,120]
[358565802,1745269034767,-30510.0,0.00047983,120]
[358565803,1745269034795,-230.0,0.00047983,120]
[358565804,1745269034824,-2133.0,0.00047983,50]
[358565805,1745269034852,-237.03422608,0.00047983,120]
[358565806,1745269034884,-200.0,0.00047983,30]
[358565807,1745269034914,-200.0,0.00047983,30]
[358565808,1745269034946,-200.0,0.00047983,30]
[358565809,1745269034975,-300.489999,0.00047983,30]
[358565810,1745269035005,-541.42893133,0.00047983,120]
[358565811,1745269035033,-1070.0,0.00047983,30]
[358565812,1745269035062,-1070.0,0.00047983,30]
[358565813,1745269035090,-1070.0,0.00047983,30]
[358565814,1745269035118,-1070.0,0.00047983,30]
[358565815,1745269035145,-1070.0,0.00047983,30]
[358565816,1745269035174,-1070.0,0.00047983,30]
[358565817,1745269035202,-1070.0,0.00047983,30]
[358565818,1745269035231,-1070.0,0.00047983,30]
[358565819,1745269035259,-1070.0,0.00047983,30]
[358565820,1745269035287,-1070.0,0.00047983,30]
[358565821,1745269035313,-1070.0,0.00047983,30]
[358565822,1745269035343,-1086.46804086,0.00047983,30]
[358565823,1745269069839,-686.62276163,0.00032877,120]
[358565824,1745269069877,-2091.532,0.00039339,54]
[358565825,1745269069905,-181.80449338,0.00039339,54]
[358565826,1745269069934,-164.565823,0.00039449,120]
[358565827,1745269069963,-548.952836,0.00039449,120]
[358565828,1745269069993,-242.62,0.00041095,120]
[358565829,1745269070023,-150.5,0.00041151,120]
[358565830,1745269070051,-150.5,0.00041151,120]
[358565831,1745269070078,-150.5,0.00041161,120]
[358565832,1745269070105,-150.5,0.00041161,120]
[358565833,1745269070132,-150.5,0.00041171,120]
[358565834,1745269070159,-150.5,0.00041171,120]
[358565835,1745269070187,-230.15,0.00041171,120]
[358565836,1745269070215,-500.0,0.00041817,120]
[358565837,1745269070242,-2000.0,0.00041817,120]
[358565838,1745269070270,-500.0,0.00041817,120]
[358565839,1745269070297,-200.0,0.00041817,120]
[358565840,1745269070325,-242.62,0.00042465,120]
[358565841,1745269070359,-150.042205,0.00042498,120]
[358565842,1745269070390,-150.042205,0.00042798,120]
[358565843,1745269070418,-200.0,0.00042978,120]
[358565844,1745269070446,-253.73,0.00043,120]
[358565845,1745269070474,-170.0,0.00043151,90]
[358565846,1745269070505,-2000.0,0.00043259,120]
[358565847,1745269070533,-150.042205,0.00043498,120]
[358565848,1745269070561,-1333.0,0.00043562,120]
[358565849,1745269070588,-201.4,0.000436,120]
[358565850,1745269070616,-1041.66,0.000436,120]
[358565851,1745269070644,-366.36185266,0.000437,120]
[358565852,1745269070672,-150.042205,0.00043798,120]
[358565853,1745269070704,-242.62,0.00043835,120]
[358565854,1745269070735,-500.0,0.00043835,120]
[358565855,1745269070773,-1000.0,0.00043835,120]
[358565856,1745269070828,-182.25613406,0.00044,120]
[358565857,1745269070856,-500.0,0.00044,120]
[358565858,1745269070882,-302.89,0.00044,120]
[358565859,1745269070909,-500.0,0.00044,120]
[358565860,1745269070936,-500.0,0.00044,120]
[358565861,1745269070964,-500.0,0.00044,120]
[358565862,1745269070991,-500.0,0.00044,120]
[358565863,1745269071017,-500.0,0.00044,120]
[358565864,1745269071044,-500.0,0.00044,120]
[358565865,1745269071073,-500.0,0.00044,120]
[358565866,1745269071100,-500.0,0.00044,120]
[358565867,1745269071127,-500.0,0.00044,120]
[358565868,1745269071154,-549.62,0.00044,120]
[358565869,1745269071181,-200.0,0.00044139,120]
[358565870,1745269071209,-600.0,0.00044189,120]
[358565871,1745269071245,-500.0,0.00044383,120]
[358565872,1745269071281,-1000.0,0.00044383,120]
[358565873,1745269071342,-166.66785936,0.0004439,120]
[358565874,1745269071368,-600.0,0.00044463,120]
[358565875,1745269071396,-150.042205,0.00044498,120]
[358565876,1745269071423,-2000.0,0.00044701,120]
[358565877,1745269071450,-600.0,0.00044737,120]
[358565878,1745269071476,-150.5,0.0004487,120]
[358565879,1745269071503,-150.5,0.0004487,120]
[358565880,1745269071531,-150.5,0.0004488,120]
[358565881,1745269071558,-150.5,0.0004488,120]
[358565882,1745269071585,-150.5,0.0004489,120]
[358565883,1745269071611,-150.5,0.0004489,120]
[358565884,1745269071638,-715.82182314,0.000449,120]
[358565885,1745269071665,-1220.63192683,0.000449,120]
[358565886,1745269071692,-2192.497,0.00044918,120]
[358565887,1745269071719,-2192.498,0.00044918,120]
[358565888,1745269071746,-2192.497,0.00044918,120]
[358565889,1745269071772,-2192.497,0.00044918,120]
[358565890,1745269071800,-2192.497,0.00044918,120]
[358565891,1745269071832,-500.0,0.00044931,120]
[358565892,1745269071865,-1000.0,0.00044931,120]
[358565893,1745269071923,-160.2,0.00045,85]
[358565894,1745269071951,-200.0,0.00045,61]
[358565895,1745269071979,-150.0,0.00045,85]
[358565896,1745269072006,-200.0,0.00045,61]
[358565897,1745269072038,-600.0,0.00045011,120]
[358565898,1745269072067,-242.62,0.00045205,120]
[358565899,1745269072095,-551.55030507,0.00045233,120]
[358565900,1745269072123,-600.0,0.00045285,120]
[358565901,1745269072150,-200.0,0.00045299,120]
[358565902,1745269072178,-551.55030507,0.00045425,120]
[358565903,1745269072209,-527.53391386,0.00045479,120]
[358565904,1745269072268,-150.042205,0.00045498,120]
[358565905,1745269072490,-551.55030507,0.00045616,120]
[358565906,1745269072520,-551.55030507,0.00045781,120]
[358565907,1745269072548,-600.0,0.00045833,120]
[358565908,1745269072576,-150.5,0.0004588,120]
[358565909,1745269072604,-265.24,0.0004588,120]
[358565910,1745269072630,-150.5,0.0004589,120]
[358565911,1745269072659,-150.5,0.0004589,120]
[358565912,1745269072687,-950.97210907,0.000459,119]
[358565913,1745269072716,-551.55030507,0.00045973,120]
[358565914,1745269072745,-500.0,0.00046,120]
[358565915,1745269072772,-6700.0,0.00046,120]
[358565916,1745269072798,-41483.70759812,0.00046,120]
[358565917,1745269072826,-173.11238741,0.00046,60]
[358565918,1745269072854,-184.98777769,0.00046,120]
[358565919,1745269072881,-1000.0,0.00046,120]
[358565920,1745269072908,-200.0,0.00046,65]
[358565921,1745269072935,-2023404.89192044,0.00046,120]
[358565922,1745269072964,-200.0,0.00046,65]
[358565923,1745269073027,-551.55030507,0.00046137,120]
[358565924,1745269073054,-2000.0,0.00046142,120]
[358565925,1745269073082,-551.55030507,0.00046329,120]
[358565926,1745269073109,-600.0,0.00046381,120]
[358565927,1745269073137,-159.01,0.0004639,120]
[358565928,1745269073168,-200.0,0.0004646,120]
[358565929,1745269073198,-150.042205,0.00046498,120]
[358565930,1745269073226,-475.0,0.000465,120]
[358565931,1745269073253,-286.0,0.000465,120]
[358565932,1745269073282,-415.97543734,0.000465,120]
[358565933,1745269073312,-551.55030507,0.00046521,120]
[358565934,1745269073343,-242.62,0.00046575,120]
[358565935,1745269073400,-71000.0,0.000466,120]
[358565936,1745269073433,-551.55030507,0.00046685,120]
[358565937,1745269073462,-551.55030507,0.00046877,120]
[358565938,1745269073489,-600.0,0.00046929,120]
[358565939,1745269073516,-959.00323013,0.00046947,60]
[358565940,1745269073545,-1107.22011015,0.0004698,120]
[358565941,1745269073573,-514.88006067,0.00047,120]
[358565942,1745269073599,-1000.0,0.00047,120]
[358565943,1745269073625,-1139.79396937,0.00047,120]
[358565944,1745269073652,-474.06845217,0.00047,120]
[358565945,1745269073678,-200.0,0.00047,69]
[358565946,1745269073706,-200.0,0.00047,69]
[358565947,1745269073735,-150.0,0.00047096,120]
[358565948,1745269073791,-600.0,0.00047477,120]
[358565949,1745269073819,-150.042205,0.00047498,120]
[358565950,1745269073846,-200.0,0.000475,120]
[358565951,1745269073873,-745800.0,0.000475,120]
[358565952,1745269073900,-1570.772089,0.00047584,120]
[358565953,1745269073927,-200.0,0.00047621,120]
[358565954,1745269073954,-961.18228071,0.00047665,120]
[358565955,1745269074007,-468.0,0.000478,120]
[358565956,1745269074035,-2131.0,0.0004789,48]
[358565957,1745269074065,-2000.0,0.00047944,31]
[358565958,1745269074093,-242.62,0.00047945,120]
[358565959,1745269074122,-164.969,0.00047982,120]
[358565960,1745269074158,-552.6946259,0.00048,49]
[358565961,1745269074185,-806.8125127,0.00048,120]
[358565962,1745269074211,-534.89710566,0.00048,120]
[358565963,1745269074239,-33528.86121885,0.00048,120]
[358565964,1745269079519,-3000000.0,0.00048,120]
[358565965,1745269088381,-200.0,0.00047,69]
[358565966,1745269088413,-207.4,0.00047,69]
[358565967,1745269088444,-215.0738,0.00047,69]
[358565968,1745269088474,-223.0315306,0.00047,69]
[358565969,1745269088505,-231.28369723,0.00047,69]
[358565970,1745269088595,-2459.05373333,0.00047928,120]
[358565971,1745269088636,-695041.87995533,0.00048,120]
[358565972,1745269088668,-200.0,0.00048,73]
[358565973,1745269088698,-200.0,0.00048,73]
[358565974,1745269088727,-600.0,0.00048025,120]
[358565975,1745269088761,-238.57,0.000482,45]
[358565976,1745269088797,-238.57,0.000482,45]
[358565977,1745269088832,-238.57,0.000482,45]
[358565978,1745269088867,-238.57,0.000482,45]
[358565979,1745269088901,-238.57,0.000482,45]
[358565980,1745269088939,-238.57,0.000482,45]
[358565981,1745269088974,-238.57,0.000482,45]
[358565982,1745269089009,-238.57,0.000482,45]
[358565983,1745269089044,-238.57,0.000482,45]
[358565984,1745269089078,-238.57,0.000482,45]
[358565985,1745269089113,-238.57,0.000482,45]
[358565986,1745269089148,-238.57,0.000482,45]
[358565987,1745269089203,-150.042205,0.00048498,120]
[358565988,1745269089230,-11178.49456412,0.000485,120]
[358565989,1745269089258,-600.0,0.00048573,120]
[358565990,1745269089287,-1183.6108832,0.00048766,120]
[358565991,1745269089339,-283.48883423,0.000488,120]
[358565992,1745269089367,-1002.22,0.000488,110]
[358565993,1745269089395,-150.0,0.00048809,120]
[358565994,1745269089425,-530.06395675,0.00048836,60]
[358565995,1745269089457,-200.0,0.00048917,120]
[358565996,1745269089486,-1002.22,0.0004895,111]
[358565997,1745269089514,-999.0,0.00048983,120]
[358565998,1745269089544,-900.0,0.00049,50]
[358565999,1745269089571,-359.67276056,0.00049,120]
[358566000,1745269089599,-200.0,0.00049,77]
[358566001,1745269089629,-200.0,0.00049,77]
[358566002,1745269089656,-169.0,0.00049,90]
[358566003,1745269089684,-1370.998249,0.000491,112]
[358566004,1745269089713,-600.0,0.00049121,120]
[358566005,1745269089740,-160.633239,0.00049315,120]
[358566006,1745269089768,-629.509786,0.00049315,120]
[358566007,1745269089796,-571.892923,0.00049315,120]
[358566008,1745269089825,-1890.77893,0.00049315,120]
[358566009,1745269089851,-500.0,0.00049315,120]
[358566010,1745269089878,-791.37,0.00049315,120]
[358566011,1745269089905,-790.22,0.00049315,60]
[358566012,1745269089936,-242.62,0.00049315,120]
[358566013,1745269089965,-500.0,0.00049315,120]
[358566014,1745269089993,-1023.25,0.00049315,120]
[358566015,1745269090023,-500.0,0.00049315,120]
[358566016,1745269090052,-500.0,0.00049315,120]
[358566017,1745269090295,-500.0,0.00049315,120]
[358566018,1745269090324,-500.0,0.00049315,120]
[358566019,1745269090371,-529.82,0.00049315,120]
[358566020,1745269090406,-969.44,0.00049315,120]
[358566021,1745269090440,-500.0,0.00049315,120]
[358566022,1745269090471,-847.27,0.00049315,120]
[358566023,1745269090502,-500.0,0.00049315,120]
[358566024,1745269090532,-500.0,0.00049315,120]
[358566025,1745269090564,-500.0,0.00049315,120]
[358566026,1745269090595,-174.87,0.00049315,120]
[358566027,1745269090626,-500.0,0.00049315,120]
[358566028,1745269090656,-980.71,0.00049315,120]
[358566029,1745269090688,-606.57,0.00049315,120]
[358566030,1745269090718,-500.0,0.00049315,120]
[358566031,1745269090748,-471.47510692,0.00049315,120]
[358566032,1745269090778,-500.0,0.00049315,120]
[358566033,1745269090807,-500.0,0.00049315,120]
[358566034,1745269090842,-2474.26,0.00049315,120]
[358566035,1745269090873,-500.0,0.00049315,120]
[358566036,1745269090907,-500.0,0.00049315,120]
[358566037,1745269090938,-2340.33,0.00049315,120]
[358566038,1745269090972,-577.17061412,0.00049315,120]
[358566039,1745269091001,-710.84,0.00049315,120]
[358566040,1745269091033,-519.36,0.00049315,120]
[358566041,1745269091063,-500.0,0.00049315,120]
[358566042,1745269091097,-500.0,0.00049315,120]
[358566043,1745269091129,-500.0,0.00049315,120]
[358566044,1745269091159,-500.0,0.00049315,120]
[358566045,1745269091189,-858.69,0.00049315,120]
[358566046,1745269091218,-500.0,0.00049315,120]
[358566047,1745269091247,-500.0,0.00049315,120]
[358566048,1745269091277,-500.0,0.00049315,120]
[358566049,1745269091307,-1419.16,0.00049315,120]
[358566050,1745269091339,-500.0,0.00049315,120]
[358566051,1745269091369,-500.0,0.00049315,120]
[358566052,1745269091399,-500.0,0.00049315,120]
[358566053,1745269091431,-500.0,0.00049315,120]
[358566054,1745269091459,-1001.34,0.00049315,120]
[358566055,1745269091495,-500.0,0.00049315,120]
[358566056,1745269091526,-500.0,0.00049315,120]
[358566057,1745269091558,-604.48,0.00049315,120]
[358566058,1745269091587,-1198.33,0.00049315,120]
[358566059,1745269091618,-527.57,0.00049315,120]
[358566060,1745269091648,-429.23338226,0.00049315,120]
[358566061,1745269091678,-500.0,0.00049315,120]
[358566062,1745269091708,-951.19,0.00049315,120]
[358566063,1745269091740,-500.0,0.00049315,120]
[358566064,1745269091770,-500.0,0.00049315,120]
[358566065,1745269091803,-500.0,0.00049315,120]
[358566066,1745269091834,-500.0,0.00049315,120]
[358566067,1745269091865,-596.37,0.00049315,120]
[358566068,1745269091896,-973.67,0.00049315,120]
[358566069,1745269091927,-1522.45,0.00049315,120]
[358566070,1745269091957,-240.615382,0.00049315,120]
[358566071,1745269091988,-1221.11,0.00049315,120]
[358566072,1745269092019,-500.0,0.00049315,120]
[358566073,1745269092049,-2145.1,0.00049315,120]
[358566074,1745269092080,-678.03,0.00049315,120]
[358566075,1745269092109,-500.0,0.00049315,120]
[358566076,1745269092139,-500.0,0.00049315,120]
[358566077,1745269092170,-525.77,0.00049315,120]
[358566078,1745269092202,-948.97,0.00049315,120]
[358566079,1745269092233,-1959.65,0.00049315,120]
[358566080,1745269092264,-853.74,0.00049315,120]
[358566081,1745269092294,-1677.09,0.00049315,35]
[358566082,1745269092325,-1317.58,0.00049315,120]
[358566083,1745269092359,-1484.19,0.00049315,120]
[358566084,1745269092390,-797.08,0.00049315,120]
[358566085,1745269092419,-1336.46,0.00049315,120]
[358566086,1745269092451,-529.94,0.00049315,120]
[358566087,1745269092495,-1357.54,0.00049315,120]
[358566088,1745269092531,-2009.27,0.00049315,120]
[358566089,1745269092561,-1174.25,0.00049315,120]
[358566090,1745269092590,-500.0,0.00049315,120]
[358566091,1745269092619,-672.04,0.00049315,120]
[358566092,1745269092650,-3677.99,0.00049315,120]
[358566093,1745269092681,-2099.91,0.00049315,120]
[358566094,1745269092711,-500.0,0.00049315,120]
[358566095,1745269092740,-467.91267245,0.00049315,120]
[358566096,1745269092769,-1579.09,0.00049315,120]
[358566097,1745269092798,-690.93,0.00049315,120]
[358566098,1745269092828,-646.72494178,0.00049315,120]
[358566099,1745269092858,-249.66817015,0.00049315,120]
[358566100,1745269092887,-522.83916211,0.00049315,120]
[358566101,1745269092915,-500.0,0.00049315,120]
[358566102,1745269092944,-593.3,0.00049315,120]
[358566103,1745269092972,-500.0,0.00049315,120]
[358566104,1745269093005,-500.0,0.00049315,120]
[358566105,1745269093035,-1104.86,0.00049315,120]
[358566106,1745269093066,-1385.14,0.00049315,120]
[358566107,1745269093097,-500.0,0.00049315,120]
[358566108,1745269093128,-831.53,0.00049315,120]
[358566109,1745269093158,-500.0,0.00049315,120]
[358566110,1745269093189,-949.77,0.00049315,120]
[358566111,1745269093220,-772.47,0.00049315,120]
[358566112,1745269093548,-161.73,0.00049315,120]
[358566113,1745269093581,-1494.4,0.00049315,120]
[358566114,1745269093612,-623.44,0.00049315,120]
[358566115,1745269093643,-500.0,0.00049315,120]
[358566116,1745269093674,-500.0,0.00049315,120]
[358566117,1745269093706,-847.59,0.00049315,120]
[358566118,1745269093737,-1480.63,0.00049315,120]
[358566119,1745269093768,-500.0,0.00049315,120]
[358566120,1745269093799,-594.54,0.00049315,120]
[358566121,1745269093830,-881.75,0.00049315,120]
[358566122,1745269093860,-1003.48,0.00049315,120]
[358566123,1745269093890,-583.01,0.00049315,120]
[358566124,1745269093919,-500.0,0.00049315,120]
[358566125,1745269093947,-1222.77,0.00049315,120]
[358566126,1745269093976,-500.0,0.00049315,120]
[358566127,1745269094004,-500.0,0.00049315,120]
[358566128,1745269094033,-546.21,0.00049315,120]
[358566129,1745269094061,-500.0,0.00049315,120]
[358566130,1745269094091,-500.0,0.00049315,120]
[358566131,1745269094118,-500.0,0.00049315,120]
[358566132,1745269094147,-706.63,0.00049315,120]
[358566133,1745269094180,-500.0,0.00049315,120]
[358566134,1745269094218,-540.95,0.00049315,120]
[358566135,1745269094249,-956.86,0.00049315,120]
[358566136,1745269094279,-884.65,0.00049315,120]
[358566137,1745269094308,-500.0,0.00049315,120]
[358566138,1745269094340,-533.96908051,0.00049315,120]
[358566139,1745269094369,-826.96,0.00049315,120]
[358566140,1745269094401,-863.91,0.00049315,120]
[358566141,1745269094432,-786.17,0.00049315,120]
[358566142,1745269094462,-500.0,0.00049315,120]
[358566143,1745269094493,-814.8,0.00049315,120]
[358566144,1745269094524,-514.13,0.00049315,120]
[358566145,1745269094555,-500.0,0.00049315,120]
[358566146,1745269094586,-1290.34,0.00049315,120]
[358566147,1745269094615,-743.09,0.00049315,120]
[358566148,1745269094643,-1183.26,0.00049315,120]
[358566149,1745269094672,-579.09,0.00049315,120]
[358566150,1745269094700,-947.57,0.00049315,120]
[358566151,1745269094731,-1099.51,0.00049315,120]
[358566152,1745269094766,-904.67,0.00049315,120]
[358566153,1745269094796,-500.0,0.00049315,120]
[358566154,1745269094826,-500.0,0.00049315,120]
[358566155,1745269094854,-1533.1,0.00049315,120]
[358566156,1745269094884,-717.75,0.00049315,120]
[358566157,1745269094913,-500.0,0.00049315,120]
[358566158,1745269094944,-729.68,0.00049315,120]
[358566159,1745269094973,-601.4,0.00049315,120]
[358566160,1745269095002,-233.83655426,0.00049315,120]
[358566161,1745269095032,-779.43,0.00049315,120]
[358566162,1745269095063,-500.0,0.00049315,120]
[358566163,1745269095093,-1738.61,0.00049315,120]
[358566164,1745269095123,-500.0,0.00049315,120]
[358566165,1745269095153,-706.3,0.00049315,120]
[358566166,1745269095183,-500.0,0.00049315,120]
[358566167,1745269095212,-500.0,0.00049315,120]
[358566168,1745269095241,-1772.65,0.00049315,120]
[358566169,1745269095270,-612.25,0.00049315,120]
[358566170,1745269095302,-454.97039777,0.00049315,120]
[358566171,1745269095332,-501.84,0.00049315,120]
[358566172,1745269095366,-500.0,0.00049315,120]
[358566173,1745269095397,-1438.84,0.00049315,120]
[358566174,1745269095427,-500.0,0.00049315,120]
[358566175,1745269095457,-927.9,0.00049315,120]
[358566176,1745269095489,-1567.41,0.00049315,120]
[358566177,1745269095521,-765.04,0.00049315,120]
[358566178,1745269095554,-500.0,0.00049315,120]
[358566179,1745269095584,-207.06719502,0.00049315,120]
[358566180,1745269095614,-1636.3,0.00049315,120]
[358566181,1745269095643,-1871.84,0.00049315,120]
[358566182,1745269095676,-500.0,0.00049315,120]
[358566183,1745269095706,-500.0,0.00049315,120]
[358566184,1745269095736,-500.0,0.00049315,120]
[358566185,1745269095765,-658.02,0.00049315,120]
[358566186,1745269095794,-1100.31,0.00049315,120]
[358566187,1745269095822,-1543.41,0.00049315,120]
[358566188,1745269095851,-500.0,0.00049315,120]
[358566189,1745269095878,-500.0,0.00049315,120]
[358566190,1745269095906,-2906.42,0.00049315,120]
[358566191,1745269095935,-500.0,0.00049315,120]
[358566192,1745269095964,-621.72,0.00049315,120]
[358566193,1745269095993,-500.0,0.00049315,120]
[358566194,1745269096022,-500.0,0.00049315,120]
[358566195,1745269096052,-616.38,0.00049315,120]
[358566196,1745269096081,-829.97,0.00049315,120]
[358566197,1745269096110,-500.0,0.00049315,120]
[358566198,1745269096138,-500.0,0.00049315,120]
[358566199,1745269096167,-500.0,0.00049315,120]
[358566200,1745269096195,-506.68,0.00049315,120]
[358566201,1745269096222,-1256.12,0.00049315,120]
[358566202,1745269096250,-500.0,0.00049315,120]
[358566203,1745269096278,-1178.06,0.00049315,120]
[358566204,1745269096306,-1134.03,0.00049315,120]
[358566205,1745269096337,-2781.12,0.00049315,120]
[358566206,1745269096367,-500.0,0.00049315,120]
[358566207,1745269096398,-585.8,0.00049315,120]
[358566208,1745269096635,-500.0,0.00049315,120]
[358566209,1745269096664,-498.87563878,0.00049315,120]
[358566210,1745269096692,-2212.34,0.00049315,120]
[358566211,1745269096720,-500.0,0.00049315,120]
[358566212,1745269096747,-821.12,0.00049315,120]
[358566213,1745269096774,-328.32,0.00049315,120]
[358566214,1745269096801,-598.39,0.00049315,120]
[358566215,1745269096827,-500.0,0.00049315,120]
[358566216,1745269096855,-1195.18,0.00049315,120]
[358566217,1745269096882,-822.93,0.00049315,120]
[358566218,1745269096910,-1335.52,0.00049315,120]
[358566219,1745269096938,-1048.75,0.00049315,120]
[358566220,1745269096966,-500.0,0.00049315,120]
[358566221,1745269096994,-3596.5,0.00049315,120]
[358566222,1745269097021,-707.27,0.00049315,120]
[358566223,1745269097047,-1275.11,0.00049315,120]
[358566224,1745269097074,-816.95,0.00049315,120]
[358566225,1745269097102,-2692.57,0.00049315,120]
[358566226,1745269097130,-1117.56,0.00049315,120]
[358566227,1745269097158,-609.00985524,0.00049315,120]
[358566228,1745269097186,-1659.14,0.00049315,120]
[358566229,1745269097214,-1047.72,0.00049315,120]
[358566230,1745269097242,-500.0,0.00049315,120]
[358566231,1745269097269,-798.15,0.00049315,120]
[358566232,1745269097296,-500.0,0.00049315,120]
[358566233,1745269097324,-981.52,0.00049315,120]
[358566234,1745269097355,-500.0,0.00049315,120]
[358566235,1745269097384,-583.75,0.00049315,120]
[358566236,1745269097412,-7757.78,0.00049315,120]
[358566237,1745269097440,-1122.27,0.00049315,120]
[358566238,1745269097468,-1136.8,0.00049315,120]
[358566239,1745269097496,-500.0,0.00049315,120]
[358566240,1745269097524,-1948.41,0.00049315,120]
[358566241,1745269097553,-1438.44,0.00049315,120]
[358566242,1745269097581,-500.0,0.00049315,120]
[358566243,1745269097609,-655.96,0.00049315,120]
[358566244,1745269097636,-1721.58,0.00049315,120]
[358566245,1745269097664,-762.02,0.00049315,120]
[358566246,1745269097693,-3067.74,0.00049315,120]
[358566247,1745269097721,-500.0,0.00049315,120]
[358566248,1745269097751,-1450.05,0.00049315,60]
[358566249,1745269097779,-720.4,0.00049315,120]
[358566250,1745269097806,-500.0,0.00049315,120]
[358566251,1745269097832,-500.0,0.00049315,120]
[358566252,1745269097859,-500.0,0.00049315,120]
[358566253,1745269097886,-500.0,0.00049315,120]
[358566254,1745269097916,-500.0,0.00049315,120]
[358566255,1745269097945,-2907.22,0.00049315,120]
[358566256,1745269097972,-4398.82,0.00049315,120]
[358566257,1745269098003,-500.0,0.00049315,120]
[358566258,1745269098033,-500.0,0.00049315,120]
[358566259,1745269098062,-315.753,0.00049315,120]
[358566260,1745269098089,-500.0,0.00049315,120]
[358566261,1745269098119,-1910.22,0.00049315,120]
[358566262,1745269098146,-645.61,0.00049315,120]
[358566263,1745269098171,-500.0,0.00049315,120]
[358566264,1745269098199,-500.0,0.00049315,120]
[358566265,1745269098226,-500.0,0.00049315,120]
[358566266,1745269098254,-3275.5,0.00049315,120]
[358566267,1745269098280,-941.01,0.00049315,120]
[358566268,1745269098307,-500.0,0.00049315,120]
[358566269,1745269098334,-2831.35,0.00049315,120]
[358566270,1745269098364,-500.0,0.00049315,120]
[358566271,1745269098391,-1070.05,0.00049315,120]
[358566272,1745269098419,-500.0,0.00049315,120]
[358566273,1745269098446,-500.0,0.00049315,120]
[358566274,1745269098473,-500.0,0.00049315,120]
[358566275,1745269098501,-594.19,0.00049315,120]
[358566276,1745269098528,-645.89,0.00049315,120]
[358566277,1745269098553,-500.0,0.00049315,120]
[358566278,1745269098578,-242.18007594,0.00049315,120]
[358566279,1745269098603,-500.0,0.00049315,120]
[358566280,1745269098628,-1158.5,0.00049315,120]